bitfinex/quotes_BTCUSD_20241004
["timestamp","ask_amount","ask_price","bid_price","bid_amount"]
[1728012828940,0.04283266,61030.0,61029.0,0.254175]
[1728012829390,0.06017144,61030.0,61029.0,0.246175]
[1728012829674,0.04283266,61030.0,61029.0,0.251175]
[1728012829866,0.06017149,61030.0,61029.0,0.258175]
[1728012831829,0.03448022,61030.0,61029.0,0.258175]
[1728012832055,0.19833322,61030.0,61029.0,0.012819]
[1728012832722,0.19833322,61030.0,61029.0,0.007819]
[1728012833154,0.19833322,61030.0,61029.0,0.000819]
[1728012833370,0.22402297,61030.0,61029.0,0.007819]
[1728012833625,0.22402297,61030.0,61029.0,0.000819]
[1728012834054,0.22402297,61030.0,61029.0,0.007819]
[1728012834286,0.22402297,61030.0,61029.0,0.012819]
[1728012834724,0.22402297,61030.0,61029.0,0.007819]
[1728012834945,0.22402297,61030.0,61029.0,0.012819]
[1728012836943,0.25201688,61030.0,61029.0,0.012819]
[1728012838059,0.22402297,61030.0,61029.0,0.012819]
[1728012839140,0.22402297,61030.0,61029.0,0.007819]
[1728012839362,0.22402297,61030.0,61029.0,0.000819]
[1728012839575,0.22424097,61030.0,61029.0,0.014819]
[1728012840026,0.22424149,61030.0,61029.0,0.014819]
[1728012840258,0.25237245,61030.0,61029.0,0.014819]
[1728012840928,0.25237245,61030.0,61029.0,0.009819]
[1728012841646,0.35237245,61030.0,61029.0,0.009819]
[1728012841874,0.35239541,61030.0,61029.0,0.009819]
[1728012844133,0.3242654,61030.0,61029.0,0.009819]
[1728012844605,0.0604124,61030.0,61029.0,0.355175]
[1728012844851,0.01714139,61030.0,61029.0,0.355175]
[1728012845332,0.03469645,61030.0,61029.0,0.355175]
[1728012846457,0.03469645,61030.0,61029.0,0.355994]
[1728012847365,0.01755506,61030.0,61029.0,0.355994]
[1728012848294,0.001638,61031.0,61030.0,0.163853]
[1728012848505,0.001638,61031.0,61030.0,0.24932968]
[1728012848772,0.02568723,61038.0,61032.0,0.007]
[1728012848987,0.38961695,61063.0,61046.0,0.34531]
[1728012848988,0.327565,61057.0,61046.0,0.34531]
[1728012849210,0.327556,61059.0,61046.0,0.34531]
[1728012849440,0.327577,61055.0,61046.0,0.34531]
[1728012849675,0.163796,61052.0,61048.0,0.163805]
[1728012849893,0.02568154,61047.0,61046.0,0.672928]
[1728012850112,0.02568154,61047.0,61046.0,0.1815]
[1728012850325,0.02568154,61047.0,61046.0,0.1885]
[1728012850555,0.02568154,61047.0,61046.0,0.1815]
[1728012850777,0.02568154,61047.0,61046.0,0.35231]
[1728012851242,0.02568154,61047.0,61039.0,0.426955]
[1728012851461,0.163817,61044.0,61041.0,0.0822]
[1728012851691,0.327623,61046.0,61041.0,0.0822]
[1728012851903,0.327623,61046.0,61041.0,0.246024]
[1728012851904,0.163815,61045.0,61041.0,0.246024]
[1728012852131,0.163814,61045.0,61041.0,0.246022]
[1728012852346,0.163822,61042.0,61038.0,0.163831]
[1728012852577,0.27036378,61047.0,61036.0,0.0822]
[1728012852578,0.27036378,61047.0,61036.0,0.05612074]
[1728012852876,0.163835,61037.0,61036.0,0.05612074]
[1728012853320,0.327659,61039.0,61036.0,0.05612074]
[1728012853542,0.163833,61038.0,61036.0,0.05612074]
[1728012853670,0.163829,61039.0,61036.0,0.05612074]
[1728012853887,0.1,61046.0,61036.0,0.06212074]
[1728012854099,0.5429696,61053.0,61036.0,0.06212074]
[1728012854100,0.163825,61041.0,61036.0,0.06212074]
[1728012854303,0.1,61043.0,61036.0,0.05612074]
[1728012854510,0.26382,61043.0,61036.0,0.05612074]
[1728012854721,0.26382,61043.0,61036.0,0.05912074]
[1728012854936,0.163821,61042.0,61036.0,0.05912074]
[1728012855143,0.1,61043.0,61036.0,0.06712074]
[1728012855144,0.001,61037.0,61036.0,0.06712074]
[1728012855343,0.427639,61043.0,61036.0,0.05912074]
[1728012855553,0.163824,61041.0,61036.0,0.05912074]
[1728012856054,0.163827,61040.0,61036.0,0.05612074]
[1728012856268,0.02568501,61040.0,61036.0,0.05612074]
[1728012856485,0.001,61037.0,61036.0,0.06312074]
[1728012856699,0.18951201,61040.0,61036.0,0.05612074]
[1728012856908,0.16383,61039.0,61036.0,0.05612074]
[1728012857128,0.16383,61039.0,61036.0,0.05712074]
[1728012857561,0.16383,61039.0,61036.0,0.05612074]
[1728012858000,0.16383,61039.0,61036.0,0.05912074]
[1728012858209,0.001638,61037.0,61036.0,0.05912074]
[1728012858465,0.001638,61037.0,61036.0,0.06112074]
[1728012858891,0.001638,61037.0,61036.0,0.05912074]
[1728012859329,0.001638,61037.0,61036.0,0.06212074]
[1728012859551,0.001638,61037.0,61036.0,0.05612074]
[1728012859782,0.001638,61037.0,61036.0,0.06512074]
[1728012859783,0.165473,61037.0,61036.0,0.06512074]
[1728012859994,0.165473,61037.0,61036.0,0.06012074]
[1728012860230,0.165473,61037.0,61036.0,0.05612074]
[1728012860508,0.165473,61037.0,61036.0,0.06112074]
[1728012860731,0.165473,61037.0,61036.0,0.06412074]
[1728012860945,0.1828189,61037.0,61036.0,0.06412074]
[1728012862503,0.1828189,61037.0,61036.0,0.05612074]
[1728012862725,0.1828189,61037.0,61036.0,0.05912074]
[1728012862935,0.1828189,61037.0,61036.0,0.06412074]
[1728012863613,0.0189839,61037.0,61036.0,0.06412074]
[1728012863836,0.0189839,61037.0,61036.0,0.41962735]
[1728012864049,0.0189839,61037.0,61036.0,0.51892735]
[1728012864287,0.0189839,61037.0,61036.0,0.35509035]
[1728012864512,0.001638,61037.0,61036.0,0.35509035]
[1728012864740,0.01893331,61037.0,61036.0,0.51892735]
[1728012865164,0.01893331,61037.0,61036.0,0.51392735]
[1728012865614,0.01893331,61037.0,61036.0,0.51692735]
[1728012866516,0.01893331,61037.0,61036.0,0.52092735]
[1728012866746,0.01893331,61037.0,61036.0,0.51492735]
[1728012866971,0.01893331,61037.0,61036.0,0.51092735]
[1728012867206,0.01893331,61037.0,61036.0,0.51892735]
[1728012867884,0.01893037,61037.0,61036.0,0.51892735]
[1728012870600,0.01893037,61037.0,61036.0,0.51974635]
[1728012871073,0.001638,61037.0,61036.0,0.51974635]
[1728012871297,0.01890292,61037.0,61036.0,0.51974635]
[1728012872410,0.01890292,61037.0,61036.0,0.51674635]
[1728012872828,0.01890292,61037.0,61036.0,0.52074635]
[1728012873284,0.01890292,61037.0,61036.0,0.51674635]
[1728012873515,0.01890292,61037.0,61036.0,0.51974635]
[1728012873742,0.01890292,61037.0,61036.0,0.32807674]
[1728012874458,0.001638,61037.0,61036.0,0.32807674]
[1728012874667,0.01892732,61037.0,61036.0,0.32807674]
[1728012876017,0.01892732,61037.0,61036.0,0.32507674]
[1728012876448,0.01892732,61037.0,61036.0,0.32407674]
[1728012876658,0.01892732,61037.0,61036.0,0.33007674]
[1728012878136,0.0189101,61037.0,61036.0,0.33007674]
[1728012880214,0.04459454,61037.0,61036.0,0.33007674]
[1728012880671,0.0189101,61037.0,61036.0,0.33007674]
[1728012880905,0.0189101,61037.0,61036.0,0.32607674]
[1728012881158,0.0189101,61037.0,61036.0,0.32007674]
[1728012881159,0.01891745,61037.0,61036.0,0.32007674]
[1728012881373,0.01891745,61037.0,61036.0,0.51674635]
[1728012881609,0.01891745,61037.0,61036.0,0.51174635]
[1728012882009,0.01991745,61037.0,61036.0,0.51974635]
[1728012882218,0.01891745,61037.0,61036.0,0.51174635]
[1728012882479,0.01891745,61037.0,61036.0,0.52874635]
[1728012882692,0.01991745,61037.0,61036.0,0.52874635]
[1728012882895,0.01991745,61037.0,61036.0,0.52574635]
[1728012883095,0.01991745,61037.0,61036.0,0.53774635]
[1728012883309,0.01991745,61037.0,61036.0,0.34607674]
[1728012883825,0.04560204,61037.0,61036.0,0.34607674]
[1728012885729,0.04560979,61037.0,61036.0,0.34607674]
[1728012889220,0.04559905,61037.0,61036.0,0.34607674]
[1728012889450,0.02832259,61037.0,61036.0,0.34607674]
[1728012889690,0.04559992,61037.0,61036.0,0.34607674]
[1728012892405,0.02832259,61037.0,61036.0,0.34607674]
[1728012892634,0.04561092,61037.0,61036.0,0.34607674]
[1728012895790,0.04565426,61037.0,61036.0,0.34607674]
[1728012899099,0.04566211,61037.0,61036.0,0.34607674]
[1728012899581,0.0456624,61037.0,61036.0,0.34607674]
[1728012901475,0.02832259,61037.0,61036.0,0.34607674]
[1728012901699,0.20948913,61037.0,61036.0,0.026819]
[1728012901925,0.04565413,61037.0,61036.0,0.026819]
[1728012902185,0.04565413,61037.0,61036.0,0.190656]
[1728012902422,0.01996954,61037.0,61036.0,0.3640324]
[1728012902658,0.01996954,61037.0,61036.0,0.360756]
[1728012904945,0.01999956,61037.0,61036.0,0.360756]
[1728012908929,0.002638,61037.0,61036.0,0.360756]
[1728012909200,0.01994986,61037.0,61036.0,0.360756]
[1728012911559,0.01994986,61037.0,61036.0,0.348756]
[1728012911797,0.01894986,61037.0,61036.0,0.334756]
[1728012912074,0.001638,61037.0,61036.0,0.58843824]
[1728012912324,0.01890728,61037.0,61036.0,0.53494271]
[1728012912569,0.01890728,61037.0,61036.0,0.60880273]
[1728012912775,0.001638,61037.0,61036.0,0.54394271]
[1728012913031,0.001638,61037.0,61036.0,0.63342273]
[1728012913453,0.001638,61037.0,61036.0,0.60175318]
[1728012914343,0.001638,61037.0,61036.0,0.60975318]
[1728012914557,0.001638,61037.0,61036.0,0.61875318]
[1728012914780,0.001638,61037.0,61036.0,0.60175318]
[1728012915008,0.001638,61037.0,61036.0,0.61375318]
[1728012915269,0.001638,61037.0,61036.0,0.62773965]
[1728012915472,0.001638,61037.0,61036.0,0.55394271]
[1728012916563,0.001638,61037.0,61036.0,0.6031269]
[1728012917031,0.24468224,61048.0,61047.0,0.165808]
[1728012917237,0.24468224,61048.0,61047.0,0.4597075]
[1728012917461,0.24468224,61048.0,61047.0,0.4577075]
[1728012917669,0.24468224,61056.0,61055.0,0.163786]
[1728012917891,0.26181435,61056.0,61055.0,0.2894855]
[1728012918115,0.01713211,61056.0,61055.0,0.2894855]
[1728012918795,0.01713211,61056.0,61055.0,0.2974855]
[1728012919054,0.40844824,61063.0,61055.0,0.1256995]
[1728012919300,0.40844824,61063.0,61059.0,0.163775]
[1728012919544,0.57221524,61063.0,61058.0,0.163778]
[1728012919760,0.16377,61061.0,61058.0,0.163778]
[1728012919975,0.01710803,61060.0,61059.0,0.163776]
[1728012920658,0.04278357,61060.0,61059.0,0.163776]
[1728012921998,0.02567554,61060.0,61059.0,0.166776]
[1728012922213,0.0427378,61060.0,61059.0,0.166776]
[1728012922656,0.0427378,61060.0,61059.0,0.169776]
[1728012923810,0.0427378,61060.0,61059.0,0.166776]
[1728012924026,0.01706226,61060.0,61059.0,0.167776]
[1728012924275,0.01706226,61060.0,61059.0,0.170776]
[1728012924906,0.04273778,61060.0,61059.0,0.170776]
[1728012926891,0.04273778,61060.0,61059.0,0.166776]
[1728012927151,0.01706226,61060.0,61059.0,0.167776]
[1728012927379,0.04273882,61060.0,61059.0,0.170776]
[1728012928505,0.02567656,61060.0,61059.0,0.170776]
[1728012928732,0.04276924,61060.0,61059.0,0.170776]
[1728012929407,0.04277121,61060.0,61059.0,0.167776]
[1728012929894,0.04440721,61060.0,61059.0,0.163776]
[1728012930102,0.04440721,61060.0,61059.0,0.167776]
[1728012930774,0.04440721,61060.0,61059.0,0.170776]
[1728012931201,0.04440721,61060.0,61059.0,0.007]
[1728012931862,0.04440866,61060.0,61059.0,0.170776]
[1728012932334,0.04440866,61060.0,61059.0,0.167776]
[1728012932577,0.04440866,61060.0,61059.0,0.170776]
[1728012933249,0.04388563,61060.0,61059.0,0.170776]
[1728012933681,0.04388563,61060.0,61059.0,0.166776]
[1728012933899,0.04388563,61060.0,61059.0,0.167776]
[1728012934122,0.04388563,61060.0,61059.0,0.163776]
[1728012936949,0.0187321,61060.0,61059.0,0.246776]
[1728012937630,0.001636,61060.0,61059.0,0.246776]
[1728012938101,0.01877708,61060.0,61059.0,0.246776]
[1728012938342,0.001636,61060.0,61059.0,0.253776]
[1728012939324,0.01878582,61060.0,61059.0,0.253776]
[1728012941842,0.01878582,61060.0,61059.0,0.250776]
[1728012942090,0.001636,61060.0,61059.0,0.170776]
[1728012942339,0.01878729,61060.0,61059.0,0.180776]
[1728012942739,0.01878729,61060.0,61059.0,0.017]
[1728012943471,0.25996029,61060.0,61059.0,0.017]
[1728012944167,0.25996029,61060.0,61047.0,0.24468224]
[1728012944168,0.327574,61055.0,61047.0,0.40848724]
[1728012944407,0.163797,61051.0,61048.0,0.163803]
[1728012944640,0.01715129,61050.0,61048.0,0.163803]
[1728012944856,0.01715129,61049.0,61047.0,0.24468224]
[1728012945114,0.01715129,61049.0,61044.0,0.327631]
[1728012945115,0.01725009,61048.0,61042.0,0.327637]
[1728012945363,0.163803,61049.0,61042.0,0.327637]
[1728012945591,0.01724545,61047.0,61042.0,0.327637]
[1728012945833,0.01724483,61048.0,61042.0,0.327637]
[1728012946057,0.01724483,61047.0,61043.0,0.327634]
[1728012946276,0.327595,61051.0,61046.0,0.16381]
[1728012946503,0.163806,61048.0,61044.0,0.163815]
[1728012946733,0.01722825,61047.0,61045.0,0.163813]
[1728012946963,0.01722825,61046.0,61045.0,0.163813]
[1728012947922,0.01722825,61046.0,61045.0,0.337213]
[1728012948154,0.24468224,61056.0,61055.0,0.163786]
[1728012948404,0.26189615,61056.0,61055.0,0.163786]
[1728012948634,0.01721391,61056.0,61055.0,0.163786]
[1728012949559,0.01721391,61056.0,61053.0,0.327582]
[1728012949796,0.01721391,61055.0,61054.0,0.163788]
[1728012950532,0.01721391,61055.0,61054.0,0.242588]
[1728012952426,0.01721391,61055.0,61054.0,0.163788]
[1728012955570,0.001636,61060.0,61056.0,0.163781]
[1728012955571,0.165409,61060.0,61056.0,0.163781]
[1728012955801,0.01719826,61059.0,61056.0,0.163781]
[1728012956028,0.01719826,61058.0,61056.0,0.163781]
[1728012956254,0.01719826,61057.0,61056.0,0.163784]
[1728012959288,0.01721001,61057.0,61056.0,0.163784]
[1728012959517,0.01721001,61057.0,61054.0,0.327578]
[1728012959742,0.01721001,61056.0,61052.0,0.327588]
[1728012959973,0.163777,61059.0,61055.0,0.163786]
[1728012960210,0.001636,61060.0,61050.0,0.0788]
[1728012960211,0.01720576,61058.0,61050.0,0.0788]
[1728012960441,0.01720576,61057.0,61056.0,0.163782]
[1728012961375,0.0172062,61057.0,61056.0,0.163782]
[1728012961618,0.0172062,61057.0,61055.0,0.163786]
[1728012961884,0.0172062,61056.0,61055.0,0.163786]
[1728012962850,0.0172062,61056.0,61051.0,0.32759]
[1728012963081,0.163777,61059.0,61056.0,0.163783]
[1728012963303,0.01720336,61058.0,61056.0,0.163783]
[1728012963527,0.163777,61059.0,61056.0,0.163783]
[1728012963528,0.01720336,61057.0,61056.0,0.163783]
[1728012966531,0.16541,61060.0,61054.0,0.327577]
[1728012966779,0.16541,61060.0,61057.0,0.163781]
[1728012967017,0.001636,61060.0,61058.0,0.163777]
[1728012967260,0.001636,61060.0,61057.0,0.327562]
[1728012967489,0.001636,61060.0,61059.0,0.35523857]
[1728012967716,0.001636,61060.0,61059.0,0.163776]
[1728012968164,0.01884842,61060.0,61059.0,0.163776]
[1728012970766,0.01875115,61060.0,61059.0,0.163776]
[1728012972277,0.01875115,61060.0,61059.0,0.167776]
[1728012972506,0.01875115,61060.0,61059.0,0.163776]
[1728012972768,0.01875115,61060.0,61059.0,0.169776]
[1728012973677,0.01875115,61060.0,61059.0,0.174776]
[1728012973930,0.01875286,61060.0,61059.0,0.174776]
[1728012975911,0.01875286,61060.0,61059.0,0.169776]
[1728012976325,0.01875286,61060.0,61059.0,0.174776]
[1728012976540,0.01875286,61060.0,61059.0,0.168776]
[1728012976746,0.01875286,61060.0,61059.0,0.174776]
[1728012977617,0.001636,61060.0,61059.0,0.174776]
[1728012977836,0.01873215,61060.0,61059.0,0.174776]
[1728012978519,0.01873215,61060.0,61059.0,0.168776]
[1728012978975,0.01873215,61060.0,61059.0,0.174776]
[1728012979210,0.01873215,61060.0,61059.0,0.169776]
[1728012979624,0.01873215,61060.0,61059.0,0.174776]
[1728012980519,0.001636,61060.0,61059.0,0.174776]
[1728012980735,0.01874951,61060.0,61059.0,0.174776]
[1728012990516,0.01875712,61060.0,61059.0,0.174776]
[1728012991677,0.01875712,61060.0,61059.0,0.34735138]
[1728012991936,0.01875712,61060.0,61059.0,0.50726271]
[1728012992175,0.001636,61060.0,61059.0,0.50726271]
[1728012992401,0.001636,61060.0,61059.0,0.63288022]
[1728012992628,0.01876844,61060.0,61059.0,0.63288022]
[1728012993563,0.329109,61074.0,61073.0,0.240038]
[1728012993564,0.001636,61074.0,61073.0,0.240038]
[1728012993789,0.001636,61074.0,61073.0,0.36565551]
[1728012994959,0.001636,61074.0,61073.0,0.37365551]
[1728012996570,0.001636,61074.0,61073.0,0.38065551]
[1728013000236,0.001636,61074.0,61073.0,0.255038]
[1728013000479,0.001636,61074.0,61073.0,0.38065551]
[1728013000707,0.001636,61074.0,61073.0,0.178738]
[1728013001150,0.001636,61074.0,61073.0,0.171738]
[1728013001805,0.001636,61074.0,61073.0,0.163738]
[1728013002053,0.001636,61074.0,61073.0,0.172738]
[1728013002286,0.001636,61074.0,61073.0,0.163738]
[1728013002496,0.001636,61074.0,61073.0,0.171738]
[1728013002955,0.001636,61074.0,61068.0,0.20271751]
[1728013002956,0.001636,61074.0,61063.0,0.0771]
[1728013003183,0.001636,61074.0,61073.0,0.008]
[1728013003695,0.165371,61074.0,61073.0,0.008]
[1728013003930,0.165371,61074.0,61070.0,0.163744]
[1728013005321,0.163739,61073.0,61070.0,0.163744]
[1728013005564,0.01719237,61072.0,61069.0,0.163746]
[1728013005795,0.01719237,61071.0,61069.0,0.163746]
[1728013006022,0.01719237,61070.0,61069.0,0.163746]
[1728013006255,0.163739,61073.0,61069.0,0.163746]
[1728013006256,0.01719237,61072.0,61069.0,0.163746]
[1728013006485,0.01719237,61071.0,61069.0,0.163746]
[1728013006710,0.01719237,61070.0,61069.0,0.163746]
[1728013006996,0.01719237,61070.0,61069.0,0.327498]
[1728013007224,0.163739,61073.0,61070.0,0.163744]
[1728013007465,0.01719606,61072.0,61071.0,0.163743]
[1728013008648,0.01719606,61072.0,61071.0,0.164743]
[1728013009795,0.18251239,61074.0,61071.0,0.163743]
[1728013010047,0.18251239,61074.0,61069.0,0.327498]
[1728013010048,0.01720316,61073.0,61069.0,0.327498]
[1728013010271,0.01877739,61074.0,61073.0,0.163738]
[1728013010501,0.03599061,61074.0,61073.0,0.163738]
[1728013010963,0.03599061,61074.0,61070.0,0.327491]
[1728013011193,0.01721322,61073.0,61072.0,0.16374]
[1728013012836,0.01821322,61073.0,61072.0,0.16374]
[1728013013075,0.01814261,61073.0,61072.0,0.16374]
[1728013016385,0.01814279,61073.0,61072.0,0.16374]
[1728013017068,0.01714279,61073.0,61072.0,0.16374]
[1728013018181,0.01714279,61073.0,61072.0,0.16774]
[1728013018615,0.01814279,61073.0,61072.0,0.16774]
[1728013019063,0.01714279,61073.0,61072.0,0.16774]
[1728013019759,0.01714279,61073.0,61072.0,0.17074]
[1728013022795,0.01714279,61073.0,61072.0,0.007]
[1728013023242,0.01714279,61073.0,61072.0,0.170741]
[1728013024175,0.01714279,61073.0,61072.0,0.166741]
[1728013024384,0.01714279,61073.0,61072.0,0.167741]
[1728013024803,0.01714279,61073.0,61072.0,0.170741]
[1728013025267,0.01714279,61073.0,61072.0,0.167741]
[1728013025498,0.01714279,61073.0,61072.0,0.007]
[1728013025723,0.01715376,61073.0,61072.0,0.007]
[1728013026173,0.01715376,61073.0,61072.0,0.007818]
[1728013026654,0.01715376,61073.0,61072.0,0.167559]
[1728013027090,0.01878976,61073.0,61072.0,0.169559]
[1728013027304,0.01878976,61073.0,61072.0,0.167559]
[1728013027513,0.01878976,61073.0,61072.0,0.166559]
[1728013027730,0.01878976,61073.0,61072.0,0.167559]
[1728013028154,0.01878976,61073.0,61072.0,0.166559]
[1728013028375,0.001636,61073.0,61072.0,0.166559]
[1728013028589,0.01879385,61073.0,61072.0,0.169559]
[1728013031549,0.001636,61073.0,61072.0,0.169559]
[1728013031764,0.01872475,61073.0,61072.0,0.005818]
[1728013031991,0.01872475,61073.0,61072.0,0.169559]
[1728013033633,0.03586614,61073.0,61072.0,0.169559]
[1728013035409,0.01877739,61073.0,61072.0,0.169559]
[1728013035613,0.03578825,61073.0,61072.0,0.169559]
[1728013038310,0.03578597,61073.0,61072.0,0.169559]
[1728013044773,0.01877739,61073.0,61072.0,0.169559]
[1728013045008,0.03575708,61073.0,61072.0,0.169559]
[1728013045230,0.01877739,61073.0,61072.0,0.169559]
[1728013045440,0.03575809,61073.0,61072.0,0.169559]
[1728013045726,0.19949609,61073.0,61072.0,0.005818]
[1728013045940,0.24848101,61073.0,61072.0,0.005818]
[1728013046192,0.27297347,61073.0,61072.0,0.005818]
[1728013046828,0.19949609,61073.0,61072.0,0.005818]
[1728013047058,0.19949609,61073.0,61072.0,0.002818]
[1728013047484,0.20149609,61073.0,61072.0,0.002818]
[1728013048340,0.20249609,61073.0,61072.0,0.002818]
[1728013049241,0.19949609,61073.0,61072.0,0.002818]
[1728013049460,0.27400767,61073.0,61072.0,0.002818]
[1728013050774,0.27300767,61073.0,61072.0,0.002818]
[1728013050990,0.27500767,61073.0,61072.0,0.002818]
[1728013052121,0.27400767,61073.0,61072.0,0.002818]
[1728013052353,0.27500767,61073.0,61072.0,0.002818]
[1728013053640,0.20149609,61073.0,61072.0,0.002818]
[1728013054100,0.20049609,61073.0,61072.0,0.002818]
[1728013054320,0.20549609,61073.0,61072.0,0.003818]
[1728013054538,0.27900767,61073.0,61072.0,0.003818]
[1728013054768,0.28000767,61073.0,61072.0,0.004818]
[1728013054990,0.27400767,61073.0,61072.0,0.003818]
[1728013055229,0.26302697,61073.0,61072.0,0.004818]
[1728013055454,0.26286446,61073.0,61072.0,0.004818]
[1728013055699,0.25686446,61073.0,61072.0,0.003818]
[1728013055940,0.18235288,61073.0,61072.0,0.002818]
[1728013056189,0.26186446,61073.0,61072.0,0.003818]
[1728013056437,0.26686446,61073.0,61072.0,0.004818]
[1728013056691,0.28835288,61073.0,61072.0,0.003818]
[1728013056935,0.36986446,61073.0,61072.0,0.004818]
[1728013058113,0.41881519,61073.0,61072.0,0.004818]
[1728013058332,0.29635288,61073.0,61072.0,0.004818]
[1728013059449,0.41875024,61073.0,61072.0,0.004818]
[1728013060589,0.60149819,61073.0,61072.0,0.004818]
[1728013061317,0.58451931,61073.0,61072.0,0.004818]
[1728013061549,0.60146416,61073.0,61072.0,0.004818]
[1728013062019,0.60346416,61073.0,61072.0,0.004818]
[1728013062233,0.60146416,61073.0,61072.0,0.004818]
[1728013063135,0.60574154,61073.0,61072.0,0.004818]
[1728013063357,0.47139623,61073.0,61072.0,0.004818]
[1728013064740,0.47136054,61073.0,61072.0,0.004818]
[1728013065240,0.47136052,61073.0,61072.0,0.004818]
[1728013066162,0.47135334,61073.0,61072.0,0.004818]
[1728013068415,0.47135092,61073.0,61072.0,0.004818]
[1728013069361,0.46707354,61073.0,61072.0,0.004818]
[1728013069593,0.59269105,61073.0,61072.0,0.004818]
[1728013070548,0.29627354,61073.0,61072.0,0.004818]
[1728013070803,0.39402631,61073.0,61072.0,0.004818]
[1728013071042,0.31341493,61073.0,61072.0,0.004818]
[1728013071761,0.31334062,61073.0,61072.0,0.004818]
[1728013073413,0.29651539,61073.0,61072.0,0.004818]
[1728013074592,0.31333667,61073.0,61072.0,0.004818]
[1728013076458,0.29651539,61073.0,61072.0,0.004818]
[1728013081513,0.31333571,61073.0,61072.0,0.004818]
[1728013081730,0.36221407,61073.0,61072.0,0.004818]
[1728013082723,0.34539375,61073.0,61072.0,0.004818]
[1728013083183,0.19651539,61073.0,61072.0,0.004818]
[1728013083421,0.19651539,61073.0,61072.0,0.179218]
[1728013083868,0.179374,61073.0,61072.0,0.179218]
[1728013084477,0.179374,61073.0,61072.0,0.178218]
[1728013084478,0.173374,61073.0,61072.0,0.178218]
[1728013084553,0.179374,61073.0,61072.0,0.179218]
[1728013085030,0.173374,61073.0,61072.0,0.178218]
[1728013085265,0.175374,61073.0,61072.0,0.178218]
[1728013085498,0.167374,61073.0,61072.0,0.177218]
[1728013085725,0.168374,61073.0,61072.0,0.177218]
[1728013085959,0.004636,61073.0,61072.0,0.177218]
[1728013086655,0.002636,61073.0,61072.0,0.177218]
[1728013086921,0.002636,61073.0,61072.0,0.179218]
[1728013087141,0.001636,61073.0,61072.0,0.46857651]
[1728013087368,0.001636,61073.0,61072.0,0.47157651]
[1728013088026,0.001636,61073.0,61072.0,0.345959]
[1728013095582,0.001636,61073.0,61072.0,0.50914571]
[1728013096527,0.001636,61073.0,61072.0,0.51114571]
[1728013096742,0.001636,61073.0,61072.0,0.50614571]
[1728013097159,0.001636,61073.0,61072.0,0.51314571]
[1728013097372,0.001636,61073.0,61072.0,0.51114571]
[1728013097588,0.001636,61073.0,61072.0,0.51714571]
[1728013098020,0.001636,61073.0,61072.0,0.52814571]
[1728013098917,0.001636,61073.0,61072.0,0.53014571]
[1728013100344,0.001636,61073.0,61072.0,0.52814571]
[1728013103972,0.001636,61073.0,61072.0,0.364959]
[1728013105046,0.001636,61073.0,61072.0,0.351959]
[1728013105520,0.001636,61073.0,61072.0,0.349959]
[1728013105738,0.001636,61073.0,61072.0,0.340959]
[1728013105971,0.001636,61073.0,61072.0,0.349959]
[1728013106245,0.001636,61073.0,61072.0,0.340959]
[1728013106723,0.001636,61073.0,61072.0,0.349959]
[1728013106944,0.001636,61073.0,61072.0,0.340959]
[1728013107172,0.001636,61073.0,61072.0,0.357959]
[1728013108071,0.001636,61073.0,61072.0,0.349959]
[1728013108281,0.001636,61073.0,61072.0,0.357959]
[1728013108706,0.001636,61073.0,61072.0,0.348959]
[1728013109591,0.001636,61073.0,61072.0,0.357959]
[1728013109810,0.001636,61073.0,61072.0,0.348959]
[1728013110081,0.001636,61073.0,61072.0,0.357959]
[1728013116453,0.001636,61090.0,61088.0,0.163698]
[1728013116679,0.001636,61090.0,61088.0,0.4939887]
[1728013116965,0.001636,61090.0,61088.0,0.49271551]
[1728013117209,0.001636,61090.0,61088.0,0.49071551]
[1728013117903,0.001636,61090.0,61088.0,0.65390222]
[1728013118361,0.001636,61090.0,61088.0,0.342098]
[1728013118594,0.001636,61090.0,61088.0,0.47471551]
[1728013118820,0.001636,61090.0,61088.0,0.46771551]
[1728013119098,0.001636,61090.0,61088.0,0.48171551]
[1728013119330,0.001636,61090.0,61088.0,0.49571551]
[1728013119558,0.001636,61090.0,61088.0,0.48171551]
[1728013119786,0.001636,61090.0,61088.0,0.54728635]
[1728013120025,0.001636,61090.0,61088.0,0.54628635]
[1728013120482,0.001636,61090.0,61088.0,0.53328635]
[1728013120690,0.001636,61090.0,61088.0,0.54728635]
[1728013121528,0.001636,61090.0,61088.0,0.56128635]
[1728013122149,0.001636,61090.0,61088.0,0.54728635]
[1728013122577,0.001636,61090.0,61088.0,0.56028635]
[1728013123089,0.001636,61090.0,61088.0,0.54728635]
[1728013123716,0.001636,61090.0,61088.0,0.53328635]
[1728013124135,0.001636,61090.0,61088.0,0.54728635]
[1728013124556,0.001636,61090.0,61088.0,0.370098]
[1728013124766,0.001636,61090.0,61088.0,0.56128635]
[1728013125443,0.001636,61090.0,61088.0,0.54728635]
[1728013125875,0.001636,61090.0,61088.0,0.56128635]
[1728013126149,0.001636,61090.0,61088.0,0.028]
[1728013126353,0.165331,61089.0,61088.0,0.028]
[1728013127035,0.165331,61089.0,61088.0,0.014]
[1728013127242,0.166331,61089.0,61088.0,0.015]
[1728013127679,0.166331,61089.0,61088.0,0.001]
[1728013128558,0.001636,61089.0,61078.0,0.24468224]
[1728013128777,0.003636,61089.0,61078.0,0.24468224]
[1728013128995,0.327404,61087.0,61078.0,0.24468224]
[1728013129267,0.163711,61084.0,61078.0,0.24468224]
[1728013129493,0.163708,61084.0,61078.0,0.24468224]
[1728013129857,0.163708,61084.0,61072.0,0.002818]
[1728013130258,0.327407,61086.0,61078.0,0.001]
[1728013130581,0.163707,61085.0,61078.0,0.001]
[1728013131126,0.002,61087.0,61079.0,0.32488224]
[1728013131323,0.002,61087.0,61079.0,0.0802]
[1728013131537,0.41001424,61089.0,61079.0,0.0802]
[1728013131730,0.002,61085.0,61079.0,0.0802]
[1728013132088,0.002,61084.0,61079.0,0.08347426]
[1728013132433,0.002,61085.0,61079.0,0.08447426]
[1728013132633,0.001636,61089.0,61079.0,0.24719626]
[1728013132837,0.24631824,61089.0,61079.0,0.243922]
[1728013133262,0.24831824,61089.0,61079.0,0.244922]
[1728013133433,0.41201424,61089.0,61079.0,0.244922]